fUST/lending_fUST_20250726
["ID","MTS","AMOUNT","RATE_DAILY","PERIOD"]
[374945936,1753475446574,-460.0,0.00022981,2]
[374945937,1753475446585,-460.0,0.00023255,2]
[374945938,1753475446595,-123.25581254,0.00023732,2]
[374945939,1753475446606,-761.08,0.0002375,2]
[374945940,1753475446616,-164.585526,0.0002376,4]
[374945941,1753475446628,-481.96802899,0.00023781,2]
[374945942,1753475446638,-460.0,0.00023781,2]
[374945943,1753475446647,-460.0,0.00023781,2]
[374945944,1753475446657,-405.95645444,0.00023799,2]
[374945945,1753475446667,-460.0,0.00023799,2]
[374945946,1753475446676,-460.0,0.00023799,2]
[374945947,1753475446687,-460.0,0.00023799,2]
[374945949,1753475446696,-405.18014183,0.00023799,2]
[374945952,1753475446709,-54.81985817,0.00023799,2]
[374945954,1753475446718,-460.0,0.00023799,2]
[374945955,1753475446728,-304.21184658,0.00023799,2]
[374945967,1753475692498,269.769539,0.00013699,2]
[374946127,1753476637960,-270.34649786,0.00019603,2]
[374946129,1753476637971,-182.78204636,0.00019798,2]
[374946131,1753476637980,-312.16666667,0.00019869,2]
[374946133,1753476637991,-57.30478891,0.00019873,2]
[374946401,1753476640667,-442.69521109,0.00019873,2]
[374946403,1753476640677,-500.0,0.00019873,2]
[374946405,1753476640687,-500.0,0.00019873,2]
[374946407,1753476640696,-500.0,0.00019873,2]
[374946409,1753476640706,-300.0,0.00019888,2]
[374946411,1753476640716,-300.0,0.00019888,2]
[374946431,1753476640895,-300.0,0.00019888,2]
[374946433,1753476640906,-500.0,0.00019888,2]
[374946435,1753476640915,-152.20988823,0.00019888,2]
[374946437,1753476640924,-500.0,0.00019888,2]
[374946439,1753476640933,-500.0,0.00019888,2]
[374946441,1753476640943,-500.0,0.00019888,2]
[374946443,1753476640952,-500.0,0.00019888,2]
[374946445,1753476640962,-500.0,0.00019888,2]
[374946447,1753476640971,-500.0,0.00019888,2]
[374946449,1753476640980,-500.0,0.00019888,2]
[374946451,1753476640989,-500.0,0.00019888,2]
[374946453,1753476640999,-500.0,0.00019888,2]
[374946455,1753476641008,-500.0,0.00019888,2]
[374946457,1753476641017,-235.29592823,0.00019888,2]
[374946459,1753476641027,-500.0,0.00019888,2]
[374946460,1753476641036,-294.93186672,0.00019888,2]
[374946462,1753476641046,-494.9629249,0.00019888,2]
[374946465,1753476641057,-500.0,0.00019888,2]
[374946466,1753476641068,-583.21637721,0.00019888,2]
[374946468,1753476641078,-419.04498195,0.00019888,2]
[374946470,1753476641088,-500.0,0.00019888,2]
[374946472,1753476641098,-460.0,0.00019897,2]
[374946474,1753476641107,-438.41695309,0.00019897,2]
[374946476,1753476641116,-460.0,0.00019897,2]
[374946478,1753476641126,-460.0,0.00019897,2]
[374946481,1753476641136,-281.05963813,0.00019897,2]
[374946483,1753476641146,-264.42885461,0.00019897,2]
[374946484,1753476641159,-460.0,0.00019898,2]
[374946486,1753476641168,-255.17114216,0.00019898,2]
[374946488,1753476641179,-460.0,0.00019898,2]
[374946490,1753476641189,-460.0,0.00019898,2]
[374946492,1753476641199,-460.0,0.00019898,2]
[374946495,1753476641210,-323.33328266,0.00019898,2]
[374946497,1753476641219,-460.0,0.00019898,2]
[374946499,1753476641229,-460.0,0.00019898,2]
[374946500,1753476641238,-603.16,0.00019898,2]
[374946503,1753476641248,-460.0,0.00019898,2]
[374946504,1753476641258,-460.0,0.00019898,2]
[374946507,1753476641267,-408.40764178,0.00019898,2]
[374946512,1753476641310,-51.59235822,0.00019898,2]
[374946514,1753476641322,-460.0,0.00019898,2]
[374946516,1753476641332,-460.0,0.00019898,2]
[374946518,1753476641342,-463.61060001,0.00019898,2]
[374946520,1753476641351,-460.0,0.00019898,2]
[374946522,1753476641360,-460.0,0.00019898,2]
[374946524,1753476641370,-460.0,0.00019898,2]
[374946526,1753476641380,-460.0,0.00019898,2]
[374946528,1753476641390,-460.0,0.00019898,2]
[374946530,1753476641402,-460.0,0.00019898,2]
[374946532,1753476641411,-460.0,0.00019898,2]
[374946534,1753476641420,-609.1376546,0.00019898,2]
[374946536,1753476641430,-539.13,0.00019898,2]
[374946538,1753476641439,-460.0,0.00019898,2]
[374946540,1753476641448,-234.21922923,0.00019898,2]
[374946542,1753476641459,-460.0,0.00019898,2]
[374946543,1753476641469,-460.0,0.00019898,2]
[374946544,1753476641478,-460.0,0.00019898,2]
[374946545,1753476641487,-460.0,0.00019898,2]
[374946546,1753476641496,-460.0,0.00019898,2]
[374946547,1753476641505,-460.0,0.00019898,2]
[374946548,1753476641514,-460.0,0.00019898,2]
[374946549,1753476641523,-370.96,0.00019898,2]
[374946550,1753476641532,-460.0,0.00019898,2]
[374946551,1753476641542,-460.0,0.00019898,2]
[374946552,1753476641551,-264.6018132,0.00019898,2]
[374946553,1753476641561,-460.0,0.00019898,2]
[374946554,1753476641571,-460.0,0.00019898,2]
[374946555,1753476641580,-460.0,0.00019898,2]
[374946556,1753476641590,-460.0,0.00019898,2]
[374946557,1753476641599,-460.0,0.00019898,2]
[374946558,1753476641608,-460.0,0.00019899,2]
[374946559,1753476641617,-460.0,0.00019899,2]
[374946560,1753476641626,-324.52610395,0.00019899,2]
[374946561,1753476641635,-460.0,0.00019899,2]
[374946562,1753476641645,-460.0,0.00019899,2]
[374946563,1753476641655,-460.0,0.00019899,2]
[374946564,1753476641665,-460.0,0.00019899,2]
[374946565,1753476641673,-460.0,0.00019899,2]
[374946566,1753476641682,-460.0,0.00019899,2]
[374946567,1753476641691,-460.0,0.00019899,2]
[374946568,1753476641702,-460.0,0.00019899,2]
[374946569,1753476641711,-460.0,0.00019899,2]
[374946570,1753476641720,-460.0,0.00019899,2]
[374946571,1753476641729,-460.0,0.00019899,2]
[374946572,1753476641739,-460.0,0.00019899,2]
[374946573,1753476641748,-460.0,0.00019899,2]
[374946574,1753476641757,-460.0,0.00019899,2]
[374946575,1753476641766,-500.0,0.00019899,2]
[374946576,1753476641775,-460.0,0.00019899,2]
[374946577,1753476641785,-245.0,0.00019899,2]
[374946578,1753476641794,-151.0,0.00019899,2]
[374946579,1753476641803,-151.0,0.00019899,2]
[374946580,1753476641812,-460.0,0.00019899,2]
[374946581,1753476641821,-151.0,0.00019899,2]
[374946582,1753476641831,-970.0,0.00019899,2]
[374946583,1753476641840,-151.0,0.00019899,2]
[374946584,1753476641849,-199.41888523,0.00019899,2]
[374946585,1753476641858,-253.00556288,0.00019899,2]
[374946586,1753476641867,-151.0,0.00019899,2]
[374946588,1753476641877,-151.0,0.00019899,2]
[374946589,1753476641886,-526.47311081,0.00019899,2]
[374946591,1753476641895,-460.0,0.00019899,2]
[374946593,1753476641905,-460.0,0.00019899,2]
[374946595,1753476641915,-460.0,0.00019899,2]
[374946597,1753476641924,-460.0,0.00019899,2]
[374946599,1753476641933,-460.0,0.00019899,2]
[374946601,1753476641943,-151.0,0.00019899,2]
[374946603,1753476641953,-171.11865944,0.00019899,2]
[374946605,1753476641962,-151.0,0.00019899,2]
[374946607,1753476641971,-460.0,0.00019899,2]
[374946609,1753476641981,-286.08590765,0.00019935,2]
[374946611,1753476641991,-236.23,0.00020071,2]
[374946613,1753476642000,-151.0,0.00020114,2]
[374946615,1753476642009,-151.0,0.00020114,2]
[374946617,1753476642018,-151.0,0.00020114,2]
[374946618,1753476642027,-151.0,0.00020114,2]
[374946620,1753476642038,-151.0,0.00020114,2]
[374946622,1753476642047,-460.0,0.00020171,2]
[374946624,1753476642057,-252.60607937,0.00020172,2]
[374946626,1753476642066,-500.0,0.00020172,2]
[374946628,1753476642076,-603.16,0.00020172,2]
[374946630,1753476642086,-460.0,0.00020172,2]
[374946632,1753476642095,-460.0,0.00020172,2]
[374946634,1753476642104,-460.0,0.00020172,2]
[374946636,1753476642113,-460.0,0.00020172,2]
[374946638,1753476642123,-460.0,0.00020172,2]
[374946640,1753476642133,-460.0,0.00020172,2]
[374946642,1753476642143,-460.0,0.00020172,2]
[374946644,1753476642152,-460.0,0.00020172,2]
[374946646,1753476642162,-460.0,0.00020172,2]
[374946649,1753476642172,-460.0,0.00020172,2]
[374946650,1753476642181,-460.0,0.00020172,2]
[374946652,1753476642191,-460.0,0.00020172,2]
[374946654,1753476642201,-460.0,0.00020172,2]
[374946657,1753476642211,-500.0,0.00020173,2]
[374946661,1753476642221,-151.0,0.00020173,2]
[374946663,1753476642230,-151.0,0.00020173,2]
[374946665,1753476642241,-151.0,0.00020173,2]
[374946667,1753476642250,-970.0,0.00020173,2]
[374946670,1753476642259,-151.0,0.00020173,2]
[374946672,1753476642269,-151.0,0.00020173,2]
[374946674,1753476642280,-151.0,0.00020173,2]
[374946676,1753476642290,-151.0,0.00020173,2]
[374946679,1753476642299,-385.35351005,0.00020173,2]
[374946681,1753476642309,-460.0,0.00020173,2]
[374946684,1753476642321,-460.0,0.00020173,2]
[374946687,1753476642331,-460.0,0.00020173,2]
[374946690,1753476642340,-176.8182389,0.00020173,2]
[374946693,1753476642349,-460.0,0.00020173,2]
[374946696,1753476642359,-460.0,0.00020173,2]
[374946699,1753476642368,-535.96,0.00020173,2]
[374946702,1753476642378,-460.0,0.00020173,2]
[374946705,1753476642389,-460.0,0.00020173,2]
[374946709,1753476642399,-269.769539,0.00020187,2]
[374946712,1753476642409,-254.85915367,0.00020388,2]
[374946715,1753476642419,-151.0,0.00020388,2]
[374946718,1753476642429,-151.0,0.00020388,2]
[374946720,1753476642439,-1000.0,0.00020421,2]
[374946722,1753476642448,-460.0,0.00020445,2]
[374946724,1753476642459,-603.16,0.00020446,2]
[374946727,1753476642469,-460.0,0.00020446,2]
[374946730,1753476642479,-460.0,0.00020446,2]
[374946733,1753476642488,-460.0,0.00020446,2]
[374946736,1753476642497,-460.0,0.00020446,2]
[374946739,1753476642507,-460.0,0.00020446,2]
[374946742,1753476642516,-460.0,0.00020446,2]
[374946745,1753476642525,-460.0,0.00020446,2]
[374946747,1753476642534,-460.0,0.00020446,2]
[374946749,1753476642544,-460.0,0.00020446,2]
[374946751,1753476642553,-500.0,0.00020447,2]
[374946753,1753476642563,-151.0,0.00020447,2]
[374946755,1753476642572,-151.0,0.00020447,2]
[374946757,1753476642581,-970.0,0.00020447,2]
[374946759,1753476642591,-151.0,0.00020447,2]
[374946761,1753476642600,-151.0,0.00020447,2]
[374946763,1753476642609,-245.0,0.00020447,2]
[374946765,1753476642619,-460.0,0.00020447,2]
[374946767,1753476642628,-460.0,0.00020447,2]
[374946769,1753476642637,-460.0,0.00020447,2]
[374946770,1753476642647,-460.0,0.00020447,2]
[374946772,1753476642657,-460.0,0.00020447,2]
[374946774,1753476642666,-500.0,0.00020465,2]
[374946777,1753476642676,-500.0,0.00020621,2]
[374946778,1753476642685,-182.78204632,0.00020651,2]
[374946780,1753476642695,-151.0,0.00020662,2]
[374946782,1753476642705,-203.17881933,0.00020662,2]
[374946784,1753476642715,-460.0,0.00020719,2]
[374946786,1753476642725,-603.16,0.0002072,2]
[374946788,1753476642735,-460.0,0.0002072,2]
[374946790,1753476642744,-228.60313819,0.0002072,2]
[374946792,1753476642753,-460.0,0.0002072,2]
[374946794,1753476642763,-460.0,0.0002072,2]
[374946796,1753476642772,-460.0,0.0002072,2]
[374946798,1753476642782,-460.0,0.0002072,2]
[374946800,1753476642791,-460.0,0.0002072,2]
[374946802,1753476642801,-460.0,0.0002072,2]
[374946804,1753476642810,-500.0,0.00020721,2]
[374946806,1753476642819,-151.0,0.00020721,2]
[374946808,1753476642829,-970.0,0.00020721,2]
[374946810,1753476642839,-274.60015769,0.00020721,2]
[374946812,1753476642850,-460.0,0.00020721,2]
[374946814,1753476642859,-460.0,0.00020721,2]
[374946816,1753476642869,-460.0,0.00020721,2]
[374946818,1753476642879,-551.36,0.00020721,2]
[374946820,1753476642888,-500.0,0.000208,2]
[374946822,1753476642898,-500.0,0.000208,2]
[374946825,1753476642908,-188.0,0.00020936,2]
[374946828,1753476642917,-500.0,0.00020968,2]
[374946831,1753476642926,-460.0,0.00020993,2]
[374946834,1753476642936,-603.16,0.00020994,2]
[374946836,1753476642945,-460.0,0.00020994,2]
[374946838,1753476642955,-460.0,0.00020994,2]
[374946840,1753476642966,-460.0,0.00020994,2]
[374946842,1753476642975,-460.0,0.00020994,2]
[374946844,1753476642985,-460.0,0.00020994,2]
[374946846,1753476642994,-460.0,0.00020994,2]
[374946848,1753476643004,-500.0,0.00020995,2]
[374946850,1753476643013,-151.0,0.00020995,2]
[374946852,1753476643022,-970.0,0.00020995,2]
[374946854,1753476643032,-460.0,0.00020995,2]
[374946856,1753476643041,-460.0,0.00020995,2]
[374946858,1753476643051,-460.0,0.00020995,2]
[374946860,1753476643060,-460.0,0.0002102,2]
[374946862,1753476643070,-460.0,0.0002102,2]
[374946864,1753476643079,-460.0,0.0002102,2]
[374946866,1753476643088,-573.91063043,0.0002102,2]
[374946868,1753476643098,-152.467607,0.0002102,2]
[374946870,1753476643107,-943.04,0.0002102,2]
[374946872,1753476643117,-460.0,0.0002102,2]
[374946874,1753476643126,-460.0,0.0002102,2]
[374946876,1753476643136,-567.86658267,0.0002102,2]
[374946878,1753476643146,-151.0,0.0002102,2]
[374946880,1753476643156,-460.0,0.0002102,2]
[374946882,1753476643166,-840.4016166,0.00021021,2]
[374946884,1753476643175,-215.93003454,0.00021021,2]
[374946886,1753476643184,-160.0,0.00021021,2]
[374946888,1753476643194,-160.0,0.00021021,2]
[374946890,1753476643204,-12627.2413641,0.00021021,2]
[374946892,1753476643213,-500.0,0.00021064,2]
[374946894,1753476643223,-351.069,0.00021215,2]
[374946896,1753476643233,-460.0,0.00021267,2]
[374946898,1753476643243,-603.16,0.00021268,2]
[374946900,1753476643252,-460.0,0.00021268,2]
[374946902,1753476643262,-460.0,0.00021268,2]
[374946904,1753476643272,-460.0,0.00021268,2]
[374946906,1753476643281,-460.0,0.00021268,2]
[374946908,1753476643291,-575.361376,0.00021268,2]
[374946910,1753476643301,-460.0,0.00021268,2]
[374946912,1753476643311,-500.0,0.00021269,2]
[374946914,1753476643324,-245.0,0.00021269,2]
[374946916,1753476643334,-970.0,0.00021269,2]
[374946918,1753476643343,-460.0,0.00021269,2]
[374946920,1753476643353,-460.0,0.00021269,2]
[374946922,1753476643363,-460.0,0.00021269,2]
[374946924,1753476643373,-151.254061,0.00021293,2]
[374946926,1753476643383,-151.0,0.00021293,2]
[374946928,1753476643392,-151.0,0.00021293,2]
[374946930,1753476643402,-151.0,0.00021293,2]
[374946932,1753476643412,-213.243212,0.00021293,2]
[374946934,1753476643421,-943.04,0.00021293,2]
[374946936,1753476643431,-213.243212,0.00021293,2]
[374946938,1753476643440,-54.20750419,0.00021293,2]
[374946949,1753476643541,-460.0,0.00019898,2]
[374946951,1753476643551,-460.0,0.00019899,2]
[374946953,1753476643561,-405.79249581,0.00021293,2]
[374946955,1753476643571,-460.0,0.00021293,2]
[374946957,1753476643581,-460.0,0.00021293,2]
[374946959,1753476643590,-460.0,0.00021541,2]
[374946961,1753476643599,-603.16,0.00021542,2]
[374946963,1753476643608,-460.0,0.00021542,2]
[374946965,1753476643618,-460.0,0.00021542,2]
[374946967,1753476643628,-460.0,0.00021542,2]
[374946969,1753476643637,-460.0,0.00021542,2]
[374946971,1753476643647,-460.0,0.00021542,2]
[374946973,1753476643656,-233.04750419,0.00021543,2]
[374946975,1753476643667,-266.95249581,0.00021543,2]
[374946977,1753476643677,-970.0,0.00021543,2]
[374946979,1753476643686,-460.0,0.00021543,2]
[374946981,1753476643696,-460.0,0.00021543,2]
[374946983,1753476643706,-460.0,0.00021543,2]
[374946985,1753476643716,-943.04,0.00021567,2]
[374946987,1753476643725,-460.0,0.00021567,2]
[374946989,1753476643735,-460.0,0.00021567,2]
[374946991,1753476643744,-460.0,0.00021567,2]
[374946993,1753476643754,-240.0,0.00021658,2]
[374946995,1753476643764,-460.0,0.00021815,2]
[374946997,1753476643773,-603.16,0.00021816,2]
[374946999,1753476643782,-460.0,0.00021816,2]
[374947001,1753476643792,-460.0,0.00021816,2]
[374947003,1753476643802,-460.0,0.00021816,2]
[374947005,1753476643811,-460.0,0.00021816,2]
[374947019,1753476643925,-151.0,0.00021816,2]
[374947021,1753476643936,-460.0,0.00021816,2]
[374947023,1753476643946,-500.0,0.00021817,2]
[374947025,1753476643956,-970.0,0.00021817,2]
[374947027,1753476643966,-169.47407839,0.00021817,2]
[374947028,1753476643975,-405.73,0.00021817,2]
[374947030,1753476643984,-943.04,0.00021841,2]
[374947032,1753476643994,-460.0,0.00021841,2]
[374947034,1753476644003,-460.0,0.00021841,2]
[374947036,1753476644012,-460.0,0.00021841,2]
[374947038,1753476644022,-445.65508761,0.00021895,2]
[374947215,1753476645841,-26.80491239,0.00021895,2]
[374947217,1753476645851,-320.0,0.00021986,2]
[374947219,1753476645860,-460.0,0.00022089,2]
[374947221,1753476645873,-151.0,0.0002209,7]
[374947224,1753476645893,-603.16,0.0002209,2]
[374947227,1753476645904,-460.0,0.0002209,2]
[374947229,1753476645914,-460.0,0.0002209,2]
[374947231,1753476645924,-460.0,0.0002209,2]
[374947233,1753476645934,-460.0,0.0002209,2]
[374947235,1753476645945,-500.0,0.00022091,2]
[374947237,1753476645954,-970.0,0.00022091,2]
[374947239,1753476645964,-688.59,0.000221,7]
[374947241,1753476645974,-943.04,0.00022115,2]
[374947243,1753476645986,-460.0,0.00022115,2]
[374947245,1753476645996,-460.0,0.00022115,2]
[374947248,1753476646006,-460.0,0.00022363,2]
[374947250,1753476646016,-603.16,0.00022364,2]
[374947252,1753476646025,-460.0,0.00022364,2]
[374947254,1753476646035,-460.0,0.00022364,2]
[374947257,1753476646045,-460.0,0.00022364,2]
[374947259,1753476646055,-460.0,0.00022364,2]
[374947261,1753476646066,-500.0,0.00022365,2]
[374947263,1753476646075,-970.0,0.00022365,2]
[374947265,1753476646086,-151.0,0.00022389,7]
[374947267,1753476646096,-151.0,0.00022389,7]
[374947269,1753476646106,-213.243212,0.00022389,7]
[374947271,1753476646116,-943.04,0.00022389,2]
[374947273,1753476646126,-213.243212,0.00022389,7]
[374947275,1753476646136,-460.0,0.00022389,2]
[374947277,1753476646146,-460.0,0.00022389,2]
[374947279,1753476646156,-274.64,0.00022637,2]
[374947281,1753476646167,-603.16,0.00022638,2]
[374947283,1753476646177,-460.0,0.00022638,2]
[374947286,1753476646188,-460.0,0.00022638,2]
[374947288,1753476646198,-460.0,0.00022638,2]
[374947290,1753476646209,-500.0,0.00022639,2]
[374947292,1753476646218,-970.0,0.00022639,2]
[374947294,1753476646228,-943.04,0.00022663,2]
[374947296,1753476646239,-460.0,0.00022663,2]
[374947298,1753476646249,-460.0,0.00022663,2]
[374947300,1753476646258,-460.0,0.00022683,2]
[374947302,1753476646268,-460.0,0.00022683,2]
[374947304,1753476646278,-500.0,0.000229,2]
[374947306,1753476646288,-603.16,0.00022912,2]
[374947308,1753476646298,-316.15,0.00022912,2]
[374947310,1753476646307,-496.1616218,0.00022912,2]
[374947312,1753476646318,-460.0,0.00022912,2]
[374947314,1753476646337,-151.0,0.00022912,7]
[374947316,1753476646346,-198.0,0.00022913,2]
[374947318,1753476646357,-970.0,0.00022913,2]
[374947321,1753476646367,-943.04,0.00022937,2]
[374947323,1753476646377,-460.0,0.00022937,2]
[374947325,1753476646388,-460.0,0.00022937,2]
[374947327,1753476646398,-460.0,0.00022957,2]
[374947329,1753476646408,-460.0,0.00022957,2]
[374947331,1753476646417,-708.11,0.00022961,3]
[374947333,1753476646428,-1293.14,0.00022961,10]
[374947335,1753476646437,-2465.92,0.00022961,10]
[374947337,1753476646447,-2054.94,0.00022961,10]
[374947339,1753476646457,-236.02,0.00022971,3]
[374947341,1753476646466,-472.05,0.00022973,3]
[374947343,1753476646476,-460.0,0.00022981,2]
[374947345,1753476646486,-460.0,0.00022981,2]
[374947347,1753476646496,-461.94018532,0.00022981,2]
[374947349,1753476646506,-460.0,0.00022981,2]
[374947351,1753476646515,-157.56248,0.00022981,7]
[374947354,1753476646527,-151.0,0.00022981,7]
[374947356,1753476646536,-213.243212,0.00022981,7]
[374947358,1753476646547,-213.243212,0.00022981,7]
[374947360,1753476646556,-460.0,0.00022982,2]
[374947362,1753476646566,-460.0,0.00022982,2]
[374947364,1753476646575,-460.0,0.00022982,2]
[374947366,1753476646584,-460.0,0.00022982,2]
[374947368,1753476646593,-253.22702597,0.00022983,2]
[374947370,1753476646603,-460.0,0.00022983,2]
[374947372,1753476646613,-460.0,0.00022983,2]
[374947374,1753476646623,-460.0,0.00022983,2]
[374947376,1753476646632,-595.69968229,0.00022983,2]
[374947378,1753476646642,-500.0,0.00022983,2]
[374947380,1753476646651,-460.0,0.00022983,2]
[374947382,1753476646661,-274.52226462,0.00022983,2]
[374947384,1753476646671,-460.0,0.00022983,2]
[374947386,1753476646681,-460.0,0.00022983,2]
[374947388,1753476646690,-460.0,0.00022983,2]
[374947390,1753476646699,-460.0,0.00022983,2]
[374947392,1753476646710,-151.0,0.0002299,7]
[374947394,1753476646720,-151.0,0.0002299,7]
[374947396,1753476646729,-151.0,0.0002299,7]
[374947398,1753476646739,-4842.08804363,0.00023,2]
[374947400,1753476646748,-193.95,0.00023,2]
[374947402,1753476646757,-500.0,0.00023015,2]
[374947404,1753476646767,-500.94168668,0.00023015,2]
[374947406,1753476646776,-603.16,0.00023186,2]
[374947408,1753476646786,-460.0,0.00023186,2]
[374947410,1753476646795,-970.0,0.00023187,2]
[374947412,1753476646804,-151.0,0.00023198,2]
[374947414,1753476646814,-943.04,0.00023211,2]
[374947416,1753476646823,-460.0,0.00023211,2]
[374947418,1753476646833,-460.0,0.00023211,2]
[374947420,1753476646842,-727.656,0.00023228,2]
[374947422,1753476646851,-460.0,0.00023231,2]
[374947424,1753476646861,-460.0,0.00023231,2]
[374947426,1753476646871,-151.0,0.00023233,7]
[374947428,1753476646883,-213.243212,0.00023233,7]
[374947430,1753476646893,-213.243212,0.00023233,7]
[374947432,1753476646903,-151.0,0.00023255,7]
[374947434,1753476646913,-151.0,0.00023255,7]
[374947437,1753476646924,-151.0,0.00023255,7]
[374947439,1753476646933,-460.0,0.00023255,2]
[374947441,1753476646943,-237.800958,0.00023255,7]
[374947442,1753476646952,-237.800958,0.00023255,7]
[374947445,1753476646964,-151.0,0.00023255,7]
[374947446,1753476646973,-151.0,0.00023255,7]
[374947449,1753476646983,-460.0,0.00023256,2]
[374947451,1753476646993,-460.0,0.00023256,2]
[374947453,1753476647002,-460.0,0.00023256,2]
[374947455,1753476647012,-446.14081276,0.00023385,2]
[374947457,1753476647021,-158.838725,0.00023425,8]
[374947459,1753476647030,-603.16,0.0002346,2]
[374947460,1753476647039,-460.0,0.0002346,2]
[374947463,1753476647048,-269.01872158,0.0002346,2]
[374947464,1753476647058,-970.0,0.00023461,2]
[374947466,1753476647067,-151.0,0.00023485,7]
[374947469,1753476647077,-151.0,0.00023485,7]
[374947471,1753476647087,-943.04,0.00023485,2]
[374947473,1753476647097,-460.0,0.00023485,2]
[374947475,1753476647106,-169.54312357,0.00023496,2]
[374947477,1753476647116,-215.0738,0.00023496,2]
[374947479,1753476647125,-539.57356699,0.00023496,2]
[374947481,1753476647135,-460.0,0.00023505,2]
[374947483,1753476647144,-460.0,0.00023505,2]
[374947485,1753476647153,-151.0,0.00023505,7]
[374947487,1753476647162,-2640.03188684,0.00023526,2]
[374947489,1753476647172,-460.0,0.00023529,2]
[374947491,1753476647181,-460.0,0.0002353,2]
[374947493,1753476647191,-460.0,0.0002353,2]
[374947495,1753476647201,-214.866498,0.0002354,7]
[374947497,1753476647214,-151.0,0.0002354,7]
[374947499,1753476647223,-151.0,0.0002354,7]
[374947501,1753476647233,-237.800958,0.0002354,7]
[374947503,1753476647242,-237.800958,0.0002354,7]
[374947505,1753476647251,-708.68,0.0002372,2]
[374947507,1753476647260,-603.16,0.00023734,2]
[374947509,1753476647269,-460.0,0.00023734,2]
[374947511,1753476647278,-970.0,0.00023735,2]
[374947513,1753476647288,-446.14081274,0.00023739,2]
[374947515,1753476647297,-943.04,0.00023759,2]
[374947517,1753476647306,-460.0,0.00023759,2]
[374947519,1753476647315,-460.0,0.00023779,2]
[374947521,1753476647329,-460.0,0.00023779,2]
[374947523,1753476647339,-1459.30889283,0.00023799,2]
[374947525,1753476647349,-151.0,0.00023799,7]
[374947527,1753476647358,-213.243212,0.00023799,7]
[374947529,1753476647367,-213.243212,0.00023799,7]
[374947531,1753476647376,-155.0,0.00023799,2]
[374947533,1753476647385,-688.59,0.000238,7]
[374947535,1753476647395,-460.0,0.00023803,2]
[374947537,1753476647404,-151.0,0.00023803,7]
[374947539,1753476647413,-151.0,0.00023803,7]
[374947541,1753476647423,-460.0,0.00023804,2]
[374947543,1753476647433,-460.0,0.00023804,2]
[374947545,1753476647442,-312.568226,0.00023836,3]
[374947547,1753476647451,-1320.41340552,0.00023836,3]
[374947549,1753476647462,-500.0,0.000239,2]
[374947551,1753476647471,-417.17192003,0.000239,2]
[374947554,1753476647490,-1318.35,0.00022465,2]
[374947556,1753476647499,-82.82807997,0.000239,2]
[374947558,1753476647508,-154.0,0.00023904,3]
[374947560,1753476647518,-154.0,0.00023904,3]
[374947562,1753476647527,-154.0,0.00023904,3]
[374947564,1753476647536,-212.2360704,0.00023904,3]